[Event "Polish Youth B18 Championship 2023"]
[Site "Jastrzebia Gora"]
[Date "2023.03.19"]
[Round "9.21"]
[White "Sternik, Piotr"]
[Black "Malik, Maciej"]
[Result "1/2-1/2"]
[ECO "E97"]
[WhiteElo "1746"]
[BlackElo "2163"]
[Annotator "TA"]
[PlyCount "61"]
[EventDate "2023.03.11"]
[EventType "swiss"]
[EventCountry "POL"]
[SourceTitle "playchess.com"]
[Source "ChessBase"]
[SourceQuality "1"]
[TimeControl "40/5400+30:1800+30"]

{[%evp 23,61,35,35,35,77,38,30,33,47,41,31,33,54,47,74,18,23,0,15,6,7,13,21,5,16,0,55,36,32,31,47,28,54,37,48,35,111,0,51,0]} 1. d4 {[%emt 0:00:05]} Nf6 {[%emt 0:00:35]} 2. c4 {[%emt 0:00:27]} g6 {[%emt 0:00:08]} 3. Nc3 {[%emt 0:00:05]} Bg7 {[%emt 0:00:10]} 4. e4 {[%emt 0:00:10]} d6 {[%emt 0:00:06]} 5. Be2 {[%emt 0:00:36]} O-O {[%emt 0:01:39]} 6. Nf3 {[%emt 0:00:05]} e5 {[%emt 0:00:27]} 7. O-O {[%emt 0:00:20]} Nc6 {[%emt 0:03:49]} 8. Be3 {[%emt 0:02:47]} Ng4 {[%emt 0:04:04]} 9. Bg5 {[%emt 0:02:49][%cal Be3g5,Bg5h4,Bh4g3][%mdl 32]} f6 {[%emt 0:01:08]} 10. Bh4 {[%emt 0:00:03]} g5 {[%emt 0:23:29]} 11. Bg3 {[%emt 0:00:07]} Nh6 {[%emt 0:00:48]} 12. dxe5 {[%emt 0:00:50]} fxe5 {[%emt 0:00:51]} 13. Nd5 $1 {[%emt 0:01:36][%mdl 4] [#] is more profitable than 13.h3 at the moment. E97: King's Indian: Classical Main Line (6...e5 7 0-0 Nc6): 8 Be3 and 8 d5 Ne7, not 9 Ne1.} Bg4 $146 {[%emt 0:02:58]} ({Predecessor:} 13... g4 14. Bh4 Qd7 15. Ne1 Nd4 16. Nc2 Kh8 17. Qd2 Rf7 18. Rae1 Qe8 19. Bg5 Ng8 20. Bd1 Be6 {0-1 Petrosyan,M (2637)-Grischuk,A (2764) Titled Tuesday intern op 22nd Feb Early blitz 2022 (7)}) 14. Nd2 {[%emt 0:21:16] White is more active.} Bxe2 {[%emt 0:01:11]} 15. Qxe2 {[%emt 0:00:02] White has an edge.} Nd4 {[%emt 0:00:13][%cal Bc6d4,Bd4e6,Be6c5][%mdl 32]} 16. Qh5 {[%emt 0:06:37]} Ne6 {[%emt 0:03:08]} 17. Qd1 {[%emt 0:03:08]} (17. Rad1 {feels hotter.} Nf4 18. Bxf4 exf4 19. c5) 17... c6 {[%emt 0:09:17]} 18. Ne3 {[%emt 0:01:09]} Qe8 {[%emt 0:00:13]} 19. Nf3 {[%emt 0:02:13]} ({White should try} 19. f3 $16) 19... Rd8 $11 {[%emt 0:00:49]} 20. Qa4 {[%emt 0:04:29]} Nc5 {[%emt 0:03:19]} 21. Qc2 Qg6 {[%emt 0:00:21]} 22. Nd2 {[%emt 0:00:59]} Ne6 {[%emt 0:03:46]} 23. Qa4 {[%emt 0:01:23]} Nc5 {[%emt 0:12:45]} 24. Qc2 {[%emt 0:00:05]} (24. Qxa7 $5 {[%cal Rb2b4]} Bf6 25. Qa3 $11) 24... b6 {[%emt 0:00:46]} (24... Ne6 $11) 25. b4 {[%emt 0:00:10]} Ne6 {[%emt 0:00:17]} 26. Qa4 {[%emt 0:06:11]} Nd4 {[%emt 0:00:25]} 27. Rfe1 {[%emt 0:00:11]} a6 {[%emt 0:02:36]} 28. Rac1 {[%emt 0:01:07]} Qh5 {[%emt 0:02:40]} 29. Qd1 {[%emt 0:01:29]} Qg6 {[%emt 0:02:28]} (29... Qxd1 $14 30. Rcxd1 g4) 30. Qa4 {[%emt 0:02:55]} ({White should play} 30. b5 $16) 30... Qh5 $1 $14 {[%emt 0:03:27]} 31. Qd1 {Weighted Error Value: White=0.20 (precise) /Black=0.17 (very precise)} (31. h3 $14) 1/2-1/2

[Event "Polish Youth B18 Championship 2023"]
[Site "Jastrzebia Gora"]
[Date "2023.03.19"]
[Round "9.22"]
[White "Wesolek, Krzysztof"]
[Black "Kotowicz, Kamil"]
[Result "1/2-1/2"]
[ECO "A01"]
[WhiteElo "1765"]
[BlackElo "1828"]
[Annotator "NA RC COMBH"]
[PlyCount "107"]
[EventDate "2023.03.11"]
[EventType "swiss"]
[EventCountry "POL"]
[SourceTitle "playchess.com"]
[Source "ChessBase"]
[SourceQuality "1"]
[TimeControl "40/5400+30:1800+30"]

1. b3 {[%emt 0:00:09]} c5 {[%emt 0:00:57]} 2. Bb2 {[%emt 0:00:01]} Nc6 {[%emt 0:00:07]} 3. e3 {[%emt 0:00:08]} Nf6 {[%emt 0:00:17]} 4. Nf3 {[%emt 0:00:07]} g6 {[%emt 0:00:06]} 5. Be2 {[%emt 0:02:42]} Bg7 {[%emt 0:00:06]} 6. O-O {[%emt 0:00:03]} O-O {[%emt 0:00:27]} 7. c4 {[%emt 0:00:18]} Re8 {[%emt 0:00:44]} 8. d4 {[%emt 0:04:15]} cxd4 {[%emt 0:00:34]} 9. exd4 {[%emt 0:00:13]} d5 {[%emt 0:00:07]} 10. Nbd2 {[%emt 0:03:44]} b6 {[%emt 0:01:39]} 11. Ne5 {[%emt 0:06:01]} Nxe5 {[%emt 0:04:54]} 12. dxe5 {[%emt 0:00:02]} Nd7 {[%emt 0:00:23]} 13. Nf3 {[%emt 0:09:51]} dxc4 {[%emt 0:00:57]} 14. Bxc4 {[%emt 0:00:06]} ({Reject} 14. Qd5 Ba6 15. Bxc4 (15. Ng5 $2 e6 $19) 15... e6 $11) 14... Nc5 {[%emt 0:01:15]} 15. Qe2 {[%emt 0:07:28]} ({Better is} 15. Ng5 $16 Be6 16. Nxe6 Qxd1 17. Raxd1 (17. Rfxd1 Nxe6 18. g3 g5 $16) 17... Nxe6 18. Rd2) 15... Be6 {[%emt 0:03:43]} 16. Bb5 {[%emt 0:03:25]} Bd7 {[%emt 0:02:56]} 17. Rfd1 {[%emt 0:02:00]} Bxb5 {[%emt 0:01:43]} 18. Qxb5 {[%emt 0:00:08]} a6 {[%emt 0:02:42]} 19. Qe2 {[%emt 0:08:56]} Qc7 {[%emt 0:02:40]} 20. Rac1 {[%emt 0:00:17]} Qb7 {[%emt 0:00:13]} 21. Ba3 {[%emt 0:08:07]} Ne6 {[%emt 0:01:10]} 22. Qe3 {[%emt 0:02:37]} Red8 {[%emt 0:02:45]} 23. h3 {[%emt 0:08:29]} h5 {[%emt 0:03:36]} 24. Nd4 {[%emt 0:07:45]} Nxd4 {[%emt 0:14:21]} 25. Rxd4 {[%emt 0:00:03]} b5 {[%emt 0:01:41]} 26. Rcd1 {[%emt 0:02:36]} Qc7 {[%emt 0:01:26]} 27. Rxd8+ {[%emt 0:04:04]} Rxd8 {[%emt 0:00:05]} 28. Rxd8+ {[%emt 0:09:10]} Qxd8 {[%emt 0:00:21]} 29. e6 {[%emt 0:01:27]} Bf6 {[%emt 0:02:57]} 30. exf7+ {[%emt 0:00:13]} Kxf7 {[%emt 0:00:10]} 31. Bc5 {[%emt 0:03:59]} Qd1+ {[%emt 0:01:58]} 32. Kh2 {[%emt 0:00:02]} Qc2 {[%emt 0:01:26]} 33. a3 {[%emt 0:00:38]} Qf5 {[%emt 0:01:15]} 34. Bd4 $11 {[%emt 0:06:37]} Qe6 {[%emt 0:01:46]} 35. Bxf6 {[%emt 0:01:33]} Qxe3 {[%emt 0:00:24]} 36. fxe3 {[%emt 0:00:08]} exf6 {[%emt 0:01:22]} 37. Kg3 {[%emt 0:00:07]} Ke6 {[%emt 0:00:02]} 38. Kf4 {[%emt 0:00:29]} Kd5 {[%emt 0:00:10]} 39. g3 {[%emt 0:01:29]} a5 {[%emt 0:00:40]} 40. g4 {[%emt 0:00:00]} hxg4 {[%emt 0:00:00]} 41. hxg4 {[%emt 0:00:37]} a4 {[%emt 0:06:52]} 42. bxa4 {[%emt 0:08:14]} bxa4 {[%emt 0:00:08]} 43. e4+ {[%emt 0:00:05]} Kd4 {[%emt 0:00:59]} 44. g5 {[%emt 0:00:19]} fxg5+ {[%emt 0:00:10]} 45. Kxg5 {[%emt 0:00:01]} Kxe4 {[%emt 0:00:11]} 46. Kxg6 {[%emt 0:00:04]} Kd3 {[%emt 0:00:05]} 47. Kf5 {[%emt 0:00:04]} Kc2 {[%emt 0:00:09]} 48. Ke4 {[%emt 0:00:04]} Kb2 {[%emt 0:00:13]} 49. Kd3 {[%emt 0:00:06]} Kxa3 {[%emt 0:00:05]} 50. Kc3 {[%emt 0:00:06]} Ka2 {[%emt 0:00:10]} 51. Kc2 {[%emt 0:00:04]} a3 {[%emt 0:00:09]} 52. Kc1 {[%emt 0:00:05]} Ka1 {[%emt 0:00:28]} 53. Kc2 {[%emt 0:00:06]} a2 {[%emt 0:00:05]} 54. Kc1 {[%emt 0:00:03]} 1/2-1/2